[Event "Early-Titled-Tuesday-Blitz-February-06-2024"]
[Site "Chess.com"]
[Date "2024.02.06"]
[Round "3"]
[White "Binary010"]
[Black "Muslim_player_05"]
[Result "1/2-1/2"]
[WhiteElo "2870"]
[BlackElo "2511"]
[TimeControl "180+1"]
[EndTime "8:29:32 PST"]
[Termination "Game drawn by stalemate"]

1. Nf3 {[%clk 0:03:00.9]} 1... Nf6 {[%clk 0:03:00]} 2. c4 {[%clk 0:03:00]} 2...
g6 {[%clk 0:03:00.1]} 3. Nc3 {[%clk 0:02:58.7]} 3... Bg7 {[%clk 0:03:00.7]} 4.
e4 {[%clk 0:02:58.7]} 4... d6 {[%clk 0:03:01.3]} 5. d4 {[%clk 0:02:58.9]} 5...
O-O {[%clk 0:03:01.9]} 6. Be3 {[%clk 0:02:59.2]} 6... Ng4 {[%clk 0:02:57.8]} 7.
Bg5 {[%clk 0:02:58.2]} 7... h6 {[%clk 0:02:47.8]} 8. Bd2 {[%clk 0:02:50.2]} 8...
e5 {[%clk 0:02:31.1]} 9. dxe5 {[%clk 0:02:22.3]} 9... Nxe5 {[%clk 0:02:29.4]}
10. Nxe5 {[%clk 0:02:22.1]} 10... dxe5 {[%clk 0:02:30.3]} 11. Be3 {[%clk
0:02:00]} 11... Nc6 {[%clk 0:02:01.9]} 12. Qxd8 {[%clk 0:01:54.2]} 12... Rxd8
{[%clk 0:02:02.8]} 13. Nd5 {[%clk 0:01:54.2]} 13... Rd7 {[%clk 0:02:03.2]} 14.
O-O-O {[%clk 0:01:52.7]} 14... Nd4 {[%clk 0:02:02.7]} 15. f4 {[%clk 0:01:43.2]}
15... c6 {[%clk 0:01:41.9]} 16. fxe5 {[%clk 0:01:36.7]} 16... cxd5 {[%clk
0:01:39.5]} 17. Rxd4 {[%clk 0:01:03.5]} 17... dxe4 {[%clk 0:01:27.4]} 18. Rxe4
{[%clk 0:01:03.5]} 18... Rc7 {[%clk 0:01:19.7]} 19. Bf4 {[%clk 0:00:55.5]} 19...
Bf5 {[%clk 0:01:19.6]} 20. Rd4 {[%clk 0:00:55.7]} 20... Re8 {[%clk 0:01:07.1]}
21. Rd5 {[%clk 0:00:44.3]} 21... Be6 {[%clk 0:00:55.7]} 22. Rd4 {[%clk
0:00:31.7]} 22... Bf5 {[%clk 0:00:40]} 23. Rd5 {[%clk 0:00:07.4]} 23... Rce7
{[%clk 0:00:36.3]} 24. Be2 {[%clk 0:00:05.3]} 24... Bxe5 {[%clk 0:00:31.6]} 25.
Bxe5 {[%clk 0:00:05.4]} 25... Rxe5 {[%clk 0:00:32.5]} 26. Rxe5 {[%clk
0:00:06.1]} 26... Rxe5 {[%clk 0:00:33.4]} 27. Bf3 {[%clk 0:00:06.8]} 27... b6
{[%clk 0:00:32.7]} 28. Kd2 {[%clk 0:00:07.2]} 28... Be6 {[%clk 0:00:25.1]} 29.
b3 {[%clk 0:00:07.1]} 29... Ra5 {[%clk 0:00:24.4]} 30. a4 {[%clk 0:00:07]} 30...
Kf8 {[%clk 0:00:23.7]} 31. Kc3 {[%clk 0:00:06.4]} 31... Ke7 {[%clk 0:00:23.9]}
32. Rd1 {[%clk 0:00:06.9]} 32... Re5 {[%clk 0:00:22.2]} 33. Rd3 {[%clk
0:00:03.8]} 33... g5 {[%clk 0:00:22.3]} 34. h3 {[%clk 0:00:03.4]} 34... f5
{[%clk 0:00:22]} 35. b4 {[%clk 0:00:03.3]} 35... g4 {[%clk 0:00:22.2]} 36. hxg4
{[%clk 0:00:03.7]} 36... fxg4 {[%clk 0:00:22.6]} 37. Bc6 {[%clk 0:00:04.5]}
37... h5 {[%clk 0:00:20.9]} 38. Kd4 {[%clk 0:00:03.7]} 38... Re2 {[%clk
0:00:20.8]} 39. g3 {[%clk 0:00:03]} 39... Rc2 {[%clk 0:00:20]} 40. Bd5 {[%clk
0:00:03.3]} 40... Bf5 {[%clk 0:00:19.3]} 41. Re3+ {[%clk 0:00:03.6]} 41... Kd6
{[%clk 0:00:19.9]} 42. c5+ {[%clk 0:00:03.9]} 42... bxc5+ {[%clk 0:00:20]} 43.
bxc5+ {[%clk 0:00:04.8]} 43... Rxc5 {[%clk 0:00:20.7]} 44. Bc4 {[%clk
0:00:03.6]} 44... Rc7 {[%clk 0:00:14.6]} 45. Bb5 {[%clk 0:00:03.4]} 45... Rc2
{[%clk 0:00:13.9]} 46. Bc4 {[%clk 0:00:01.9]} 46... Rd2+ {[%clk 0:00:14.1]} 47.
Kc3 {[%clk 0:00:02.2]} 47... Rg2 {[%clk 0:00:13.9]} 48. Kd4 {[%clk 0:00:02.9]}
48... Rd2+ {[%clk 0:00:13.6]} 49. Kc3 {[%clk 0:00:03.3]} 49... Rf2 {[%clk
0:00:14.5]} 50. Kd4 {[%clk 0:00:03.4]} 50... Rf3 {[%clk 0:00:15]} 51. Be2 {[%clk
0:00:02.1]} 51... Rxe3 {[%clk 0:00:14.6]} 52. Kxe3 {[%clk 0:00:03]} 52... Ke5
{[%clk 0:00:14.7]} 53. a5 {[%clk 0:00:03.4]} 53... Bd7 {[%clk 0:00:14.1]} 54. a6
{[%clk 0:00:03.5]} 54... Bc6 {[%clk 0:00:14.2]} 55. Bf1 {[%clk 0:00:03.9]} 55...
Bf3 {[%clk 0:00:13.2]} 56. Bb5 {[%clk 0:00:03]} 56... Bd5 {[%clk 0:00:12.9]} 57.
Be8 {[%clk 0:00:02.6]} 57... Bc4 {[%clk 0:00:11.7]} 58. Bxh5 {[%clk 0:00:02.3]}
58... Kf5 {[%clk 0:00:12.3]} 59. Be8 {[%clk 0:00:02.1]} 59... Bxa6 {[%clk
0:00:12.1]} 60. Bd7+ {[%clk 0:00:02.8]} 60... Kg5 {[%clk 0:00:11.8]} 61. Kd4
{[%clk 0:00:03.4]} 61... Be2 {[%clk 0:00:11.6]} 62. Kc3 {[%clk 0:00:03.6]} 62...
Kf6 {[%clk 0:00:10.7]} 63. Kb4 {[%clk 0:00:03.5]} 63... Ke5 {[%clk 0:00:09.9]}
64. Kc3 {[%clk 0:00:02]} 64... Ke4 {[%clk 0:00:09.8]} 65. Kd2 {[%clk 0:00:02.8]}
65... Kf3 {[%clk 0:00:09.7]} 66. Bc6+ {[%clk 0:00:02.4]} 66... Kf2 {[%clk
0:00:08.9]} 67. Bd7 {[%clk 0:00:02.4]} 67... Bf3 {[%clk 0:00:08.8]} 68. Kc3
{[%clk 0:00:02]} 68... Kxg3 {[%clk 0:00:08.9]} 69. Kb2 {[%clk 0:00:02.6]} 69...
Kf4 {[%clk 0:00:09.3]} 70. Bxg4 {[%clk 0:00:03.3]} 70... Bxg4 {[%clk 0:00:09.5]}
71. Ka1 {[%clk 0:00:04.2]} 71... Ke3 {[%clk 0:00:09]} 72. Kb2 {[%clk 0:00:04.9]}
72... Kd4 {[%clk 0:00:09.9]} 73. Ka1 {[%clk 0:00:05.5]} 73... Kc4 {[%clk
0:00:10.8]} 74. Kb2 {[%clk 0:00:05.8]} 74... a5 {[%clk 0:00:11.7]} 75. Ka1
{[%clk 0:00:06.5]} 75... a4 {[%clk 0:00:12.6]} 76. Kb2 {[%clk 0:00:07.2]} 76...
Kb4 {[%clk 0:00:13.1]} 77. Ka1 {[%clk 0:00:07.9]} 77... Kb3 {[%clk 0:00:14]} 78.
Kb1 {[%clk 0:00:08.1]} 78... Bf5+ {[%clk 0:00:14.9]} 79. Ka1 {[%clk 0:00:08.7]}
79... Bd3 {[%clk 0:00:14.2]} 1/2-1/2

[Event "Early-Titled-Tuesday-Blitz-February-06-2024"]
[Site "Chess.com"]
[Date "2024.02.06"]
[Round "3"]
[White "FREDERICKtheMATE"]
[Black "Eagle_2019"]
[Result "0-1"]
[WhiteElo "2645"]
[BlackElo "2857"]
[TimeControl "180+1"]
[EndTime "8:29:38 PST"]
[Termination "Eagle_2019 won by checkmate"]

1. Nf3 {[%clk 0:03:00.9]} 1... d5 {[%clk 0:02:59.6]} 2. e3 {[%clk 0:03:00.8]}
2... Nf6 {[%clk 0:02:59]} 3. b3 {[%clk 0:03:00.7]} 3... Bg4 {[%clk 0:02:52.1]}
4. Bb2 {[%clk 0:02:59.1]} 4... Nbd7 {[%clk 0:02:51.8]} 5. d4 {[%clk 0:02:58.2]}
5... e6 {[%clk 0:02:51.3]} 6. Nbd2 {[%clk 0:02:56.5]} 6... Bd6 {[%clk
0:02:50.2]} 7. Bd3 {[%clk 0:02:56.5]} 7... O-O {[%clk 0:02:49.7]} 8. c4 {[%clk
0:02:56.7]} 8... c6 {[%clk 0:02:49]} 9. h3 {[%clk 0:02:56.5]} 9... Bh5 {[%clk
0:02:48.8]} 10. Qc2 {[%clk 0:02:54.2]} 10... Bg6 {[%clk 0:02:46.5]} 11. O-O
{[%clk 0:02:50.8]} 11... a5 {[%clk 0:02:43.6]} 12. e4 {[%clk 0:02:49.3]} 12...
dxe4 {[%clk 0:02:42.2]} 13. Nxe4 {[%clk 0:02:50.2]} 13... Nxe4 {[%clk
0:02:37.7]} 14. Bxe4 {[%clk 0:02:50.3]} 14... a4 {[%clk 0:02:31.8]} 15. Rfd1
{[%clk 0:02:41.5]} 15... Nf6 {[%clk 0:02:25.1]} 16. Bxg6 {[%clk 0:02:40.6]}
16... hxg6 {[%clk 0:02:26]} 17. Ne5 {[%clk 0:02:40.3]} 17... Qa5 {[%clk
0:02:23.3]} 18. Bc3 {[%clk 0:02:39.3]} 18... Qa6 {[%clk 0:02:21.3]} 19. Nd3
{[%clk 0:02:23.8]} 19... b5 {[%clk 0:02:10.1]} 20. Bb2 {[%clk 0:02:18.9]} 20...
Rfd8 {[%clk 0:01:55.2]} 21. Rac1 {[%clk 0:02:13.9]} 21... axb3 {[%clk
0:01:53.6]} 22. axb3 {[%clk 0:02:13.7]} 22... Rab8 {[%clk 0:01:50.2]} 23. Ra1
{[%clk 0:02:10.2]} 23... Qb7 {[%clk 0:01:48.2]} 24. Bc3 {[%clk 0:02:04.8]} 24...
Ra8 {[%clk 0:01:31.1]} 25. Ba5 {[%clk 0:02:03.3]} 25... Rdc8 {[%clk 0:01:28.6]}
26. Bd2 {[%clk 0:01:42.4]} 26... Nd7 {[%clk 0:01:03.6]} 27. c5 {[%clk
0:01:32.3]} 27... Bc7 {[%clk 0:01:02.3]} 28. Bf4 {[%clk 0:01:30.3]} 28... Bxf4
{[%clk 0:01:00.5]} 29. Nxf4 {[%clk 0:01:31.2]} 29... Nf6 {[%clk 0:00:59.5]} 30.
h4 {[%clk 0:01:27.2]} 30... Rxa1 {[%clk 0:00:55.8]} 31. Rxa1 {[%clk 0:01:26.4]}
31... Rd8 {[%clk 0:00:54.1]} 32. Qc3 {[%clk 0:01:23.8]} 32... Qd7 {[%clk
0:00:52.5]} 33. Ne2 {[%clk 0:01:18.6]} 33... Qd5 {[%clk 0:00:51.5]} 34. Ra7
{[%clk 0:01:13.8]} 34... Qe4 {[%clk 0:00:48.6]} 35. Qe3 {[%clk 0:01:01]} 35...
Qb1+ {[%clk 0:00:43.9]} 36. Nc1 {[%clk 0:00:56.8]} 36... e5 {[%clk 0:00:41]} 37.
f3 {[%clk 0:00:37.9]} 37... exd4 {[%clk 0:00:34.6]} 38. Qd2 {[%clk 0:00:35.8]}
38... d3 {[%clk 0:00:34.6]} 39. Kf2 {[%clk 0:00:34.6]} 39... Qc2 {[%clk
0:00:31.6]} 40. Qxc2 {[%clk 0:00:32.2]} 40... dxc2 {[%clk 0:00:31.2]} 41. Ke1
{[%clk 0:00:27.6]} 41... Rd1+ {[%clk 0:00:29.6]} 42. Ke2 {[%clk 0:00:27]} 42...
Rxc1 {[%clk 0:00:29.7]} 43. Kd2 {[%clk 0:00:27.4]} 43... Rg1 {[%clk 0:00:22]}
44. Kxc2 {[%clk 0:00:27.6]} 44... Rxg2+ {[%clk 0:00:22.9]} 45. Kd3 {[%clk
0:00:28]} 45... Nd5 {[%clk 0:00:22]} 46. Ra8+ {[%clk 0:00:26.4]} 46... Kh7
{[%clk 0:00:21.4]} 47. Rc8 {[%clk 0:00:26.9]} 47... Rb2 {[%clk 0:00:17.4]} 48.
Kd4 {[%clk 0:00:23.1]} 48... Rd2+ {[%clk 0:00:12]} 49. Ke5 {[%clk 0:00:22.1]}
49... Nb4 {[%clk 0:00:12]} 50. Rc7 {[%clk 0:00:21.2]} 50... Rd5+ {[%clk
0:00:11.7]} 51. Ke4 {[%clk 0:00:20.4]} 51... f5+ {[%clk 0:00:11.7]} 52. Kf4
{[%clk 0:00:20]} 52... Rxc5 {[%clk 0:00:11.8]} 53. Kg5 {[%clk 0:00:20.4]} 53...
f4+ {[%clk 0:00:12]} 54. Kg4 {[%clk 0:00:19.5]} 54... Nd5 {[%clk 0:00:11.4]} 55.
Rf7 {[%clk 0:00:18.6]} 55... Rc2 {[%clk 0:00:08.9]} 56. Kh3 {[%clk 0:00:17.8]}
56... Rf2 {[%clk 0:00:08.4]} 57. Rf8 {[%clk 0:00:16.2]} 57... Rxf3+ {[%clk
0:00:08.2]} 58. Kg2 {[%clk 0:00:17.1]} 58... Rxb3 {[%clk 0:00:08.5]} 59. Rc8
{[%clk 0:00:17.1]} 59... Ne3+ {[%clk 0:00:08.6]} 60. Kf3 {[%clk 0:00:16.8]}
60... Nf5+ {[%clk 0:00:08.8]} 61. Kxf4 {[%clk 0:00:17.4]} 61... Nxh4 {[%clk
0:00:08.9]} 62. Rxc6 {[%clk 0:00:17.7]} 62... b4 {[%clk 0:00:08.7]} 63. Kg5
{[%clk 0:00:16.9]} 63... Nf3+ {[%clk 0:00:08.9]} 64. Kf4 {[%clk 0:00:16.9]}
64... Nd4 {[%clk 0:00:09.8]} 65. Rb6 {[%clk 0:00:17]} 65... Rb1 {[%clk
0:00:09.6]} 66. Ke4 {[%clk 0:00:16.8]} 66... Nf5 {[%clk 0:00:09.6]} 67. Kf4
{[%clk 0:00:17.2]} 67... b3 {[%clk 0:00:10]} 68. Ke4 {[%clk 0:00:17.3]} 68... b2
{[%clk 0:00:10.3]} 69. Kf4 {[%clk 0:00:17.9]} 69... Rf1+ {[%clk 0:00:10.1]} 70.
Kg5 {[%clk 0:00:15.5]} 70... b1=Q {[%clk 0:00:10.3]} 71. Rxb1 {[%clk 0:00:15.7]}
71... Rxb1 {[%clk 0:00:11.2]} 72. Kg4 {[%clk 0:00:15.6]} 72... Kh6 {[%clk
0:00:11.3]} 73. Kf3 {[%clk 0:00:16.5]} 73... Rb4 {[%clk 0:00:11.3]} 74. Kg2
{[%clk 0:00:17.4]} 74... Kg5 {[%clk 0:00:12.2]} 75. Kf2 {[%clk 0:00:18.3]} 75...
Kf4 {[%clk 0:00:12.5]} 76. Ke2 {[%clk 0:00:19.2]} 76... Rb2+ {[%clk 0:00:13]}
77. Kd3 {[%clk 0:00:19.2]} 77... Ke5 {[%clk 0:00:13]} 78. Kc4 {[%clk 0:00:20.1]}
78... Rc2+ {[%clk 0:00:13.1]} 79. Kb5 {[%clk 0:00:21]} 79... Kd5 {[%clk
0:00:13.2]} 80. Kb6 {[%clk 0:00:21]} 80... Nd6 {[%clk 0:00:13.7]} 81. Ka5 {[%clk
0:00:20.7]} 81... Kc5 {[%clk 0:00:13.6]} 82. Ka4 {[%clk 0:00:21.6]} 82... Rc3
{[%clk 0:00:13.8]} 83. Ka5 {[%clk 0:00:21.4]} 83... Ra3# {[%clk 0:00:14.3]} 0-1

[Event "Early-Titled-Tuesday-Blitz-February-06-2024"]
[Site "Chess.com"]
[Date "2024.02.06"]
[Round "3"]
[White "Bodnar_Mykola"]
[Black "forevery0ung"]
[Result "0-1"]
[WhiteElo "2479"]
[BlackElo "2762"]
[TimeControl "180+1"]
[EndTime "8:29:40 PST"]
[Termination "forevery0ung won on time"]

1. c4 {[%clk 0:03:00.9]} 1... Nf6 {[%clk 0:02:59.1]} 2. Nc3 {[%clk 0:03:00.4]}
2... g6 {[%clk 0:02:59.5]} 3. d4 {[%clk 0:03:00.2]} 3... Bg7 {[%clk 0:02:59.7]}
4. Nf3 {[%clk 0:03:00.8]} 4... O-O {[%clk 0:02:59.8]} 5. Bg5 {[%clk 0:03:00.8]}
5... c5 {[%clk 0:02:55.9]} 6. e3 {[%clk 0:03:00.5]} 6... cxd4 {[%clk 0:02:55.7]}
7. Nxd4 {[%clk 0:02:56.7]} 7... Qa5 {[%clk 0:02:54.6]} 8. Bxf6 {[%clk 0:02:56]}
8... Bxf6 {[%clk 0:02:53.5]} 9. Qd2 {[%clk 0:02:56.7]} 9... Nc6 {[%clk
0:02:49.4]} 10. Nd5 {[%clk 0:02:42.1]} 10... Qxd2+ {[%clk 0:02:39]} 11. Kxd2
{[%clk 0:02:43]} 11... Bxd4 {[%clk 0:02:25.5]} 12. exd4 {[%clk 0:02:41.8]} 12...
d6 {[%clk 0:02:24]} 13. Nc7 {[%clk 0:02:25.4]} 13... Rb8 {[%clk 0:02:21.5]} 14.
d5 {[%clk 0:02:25.5]} 14... Ne5 {[%clk 0:02:16.5]} 15. f4 {[%clk 0:02:24.3]}
15... Ng4 {[%clk 0:02:13.6]} 16. Nb5 {[%clk 0:02:22.1]} 16... a6 {[%clk
0:02:10.4]} 17. Nd4 {[%clk 0:02:21.9]} 17... Bd7 {[%clk 0:01:41.2]} 18. a4
{[%clk 0:02:19.5]} 18... Rfc8 {[%clk 0:01:38.6]} 19. Be2 {[%clk 0:02:07.2]}
19... Nf2 {[%clk 0:01:37.4]} 20. Rhc1 {[%clk 0:02:04.1]} 20... a5 {[%clk
0:01:35.8]} 21. b3 {[%clk 0:02:02.5]} 21... Ne4+ {[%clk 0:01:32.4]} 22. Ke3
{[%clk 0:02:01.9]} 22... Nc5 {[%clk 0:01:32.9]} 23. Bf3 {[%clk 0:01:52.7]} 23...
Re8 {[%clk 0:01:32.1]} 24. Kd2 {[%clk 0:01:49.8]} 24... Ra8 {[%clk 0:01:30.6]}
25. Re1 {[%clk 0:01:47]} 25... f5 {[%clk 0:01:21.3]} 26. Re3 {[%clk 0:01:45.4]}
26... Kf7 {[%clk 0:01:22]} 27. Rae1 {[%clk 0:01:44.3]} 27... h6 {[%clk
0:01:22.3]} 28. h4 {[%clk 0:01:42.5]} 28... Kf6 {[%clk 0:01:20.7]} 29. Kc3
{[%clk 0:01:25.9]} 29... Rac8 {[%clk 0:01:18.7]} 30. Kb2 {[%clk 0:01:24.5]}
30... Rc7 {[%clk 0:01:08]} 31. g3 {[%clk 0:01:23.6]} 31... Rcc8 {[%clk 0:00:45]}
32. R1e2 {[%clk 0:01:21]} 32... Ra8 {[%clk 0:00:42.4]} 33. Re1 {[%clk
0:01:20.1]} 33... Ra6 {[%clk 0:00:40.6]} 34. Kc3 {[%clk 0:01:18.9]} 34... Rb6
{[%clk 0:00:40.2]} 35. Rg1 {[%clk 0:01:12.3]} 35... h5 {[%clk 0:00:04.2]} 36.
Rge1 {[%clk 0:01:08.6]} 36... Rb4 {[%clk 0:00:03.9]} 37. Bg2 {[%clk 0:01:00.5]}
37... Kf7 {[%clk 0:00:03.7]} 38. Bf3 {[%clk 0:00:48.6]} 38... Kf6 {[%clk
0:00:04.2]} 39. Bd1 {[%clk 0:00:48]} 39... Rb6 {[%clk 0:00:04.1]} 40. Nf3 {[%clk
0:00:41.9]} 40... Ne4+ {[%clk 0:00:03.9]} 41. Rxe4 {[%clk 0:00:41.8]} 41... fxe4
{[%clk 0:00:04.6]} 42. Rxe4 {[%clk 0:00:42.4]} 42... Bf5 {[%clk 0:00:04.9]} 43.
Re3 {[%clk 0:00:41.8]} 43... e6 {[%clk 0:00:05]} 44. Nd4 {[%clk 0:00:40.3]}
44... Re7 {[%clk 0:00:05.5]} 45. Bf3 {[%clk 0:00:31.1]} 45... exd5 {[%clk
0:00:03.8]} 46. Rxe7 {[%clk 0:00:30]} 46... Kxe7 {[%clk 0:00:04.7]} 47. Bxd5
{[%clk 0:00:24.2]} 47... Bd7 {[%clk 0:00:04.3]} 48. Kd3 {[%clk 0:00:20.6]} 48...
Kf6 {[%clk 0:00:03.1]} 49. Ke4 {[%clk 0:00:20]} 49... Bc6 {[%clk 0:00:02.9]} 50.
Nb5 {[%clk 0:00:14.7]} 50... Bd7 {[%clk 0:00:01.6]} 51. Kd4 {[%clk 0:00:14.6]}
51... Ke7 {[%clk 0:00:01.5]} 52. Ke4 {[%clk 0:00:14]} 52... Bc6 {[%clk
0:00:01.8]} 53. Kd4 {[%clk 0:00:13.9]} 53... Ra6 {[%clk 0:00:02.4]} 54. Nc3
{[%clk 0:00:13.5]} 54... Ra7 {[%clk 0:00:02.2]} 55. Ne4 {[%clk 0:00:13.7]} 55...
Ra6 {[%clk 0:00:02.8]} 56. Ng5 {[%clk 0:00:13.7]} 56... Rb6 {[%clk 0:00:03.3]}
57. Bxc6 {[%clk 0:00:12]} 57... bxc6 {[%clk 0:00:03.4]} 58. Kc3 {[%clk
0:00:12.4]} 58... Rb8 {[%clk 0:00:03.6]} 59. Ne4 {[%clk 0:00:12.3]} 59... Ke6
{[%clk 0:00:03.5]} 60. c5 {[%clk 0:00:12.3]} 60... d5 {[%clk 0:00:03.5]} 61. Nd6
{[%clk 0:00:12.2]} 61... Kd7 {[%clk 0:00:03]} 62. Kc2 {[%clk 0:00:12.4]} 62...
Rb4 {[%clk 0:00:03]} 63. Kc3 {[%clk 0:00:12.3]} 63... Ke6 {[%clk 0:00:03]} 64.
Kc2 {[%clk 0:00:11.9]} 64... Rd4 {[%clk 0:00:03.2]} 65. Kc3 {[%clk 0:00:10.9]}
65... Rd1 {[%clk 0:00:03.8]} 66. b4 {[%clk 0:00:08.5]} 66... axb4+ {[%clk
0:00:04.4]} 67. Kxb4 {[%clk 0:00:09.3]} 67... Rg1 {[%clk 0:00:04]} 68. a5 {[%clk
0:00:09.4]} 68... Rxg3 {[%clk 0:00:04.6]} 69. a6 {[%clk 0:00:09.3]} 69... Rg1
{[%clk 0:00:05.2]} 70. Ka5 {[%clk 0:00:09.7]} 70... Rc1 {[%clk 0:00:03.4]} 71.
a7 {[%clk 0:00:09.4]} 71... Kd7 {[%clk 0:00:02.7]} 72. Kb6 {[%clk 0:00:08.4]}
72... Rb1+ {[%clk 0:00:02.7]} 73. Ka6 {[%clk 0:00:08.8]} 73... Kc7 {[%clk
0:00:03.1]} 74. Ne8+ {[%clk 0:00:08.7]} 74... Kd7 {[%clk 0:00:02.9]} 75. a8=Q
{[%clk 0:00:08.1]} 75... Ra1+ {[%clk 0:00:02.7]} 76. Kb7 {[%clk 0:00:08.1]}
76... Rxa8 {[%clk 0:00:03.2]} 77. Nf6+ {[%clk 0:00:05]} 77... Ke6 {[%clk
0:00:03.9]} 78. Nxd5 {[%clk 0:00:01]} 78... Kxd5 {[%clk 0:00:03.7]} 0-1

[Event "Early-Titled-Tuesday-Blitz-February-06-2024"]
[Site "Chess.com"]
[Date "2024.02.06"]
[Round "3"]
[White "AlexeiShirov"]
[Black "MagnusCarlsen"]
[Result "0-1"]
[WhiteElo "2774"]
[BlackElo "3340"]
[TimeControl "180+1"]
[EndTime "8:29:42 PST"]
[Termination "MagnusCarlsen won on time"]

1. e4 {[%clk 0:03:00.9]} 1... a6 {[%clk 0:02:56.2]} 2. d4 {[%clk 0:02:59.9]}
2... e6 {[%clk 0:02:55.2]} 3. Nf3 {[%clk 0:02:48.6]} 3... d5 {[%clk 0:02:55.3]}
4. e5 {[%clk 0:02:48.2]} 4... Bd7 {[%clk 0:02:54.6]} 5. Bd3 {[%clk 0:02:28.9]}
5... Bb5 {[%clk 0:02:53.9]} 6. O-O {[%clk 0:02:26.7]} 6... Bxd3 {[%clk 0:02:54]}
7. Qxd3 {[%clk 0:02:26.4]} 7... c5 {[%clk 0:02:53.9]} 8. c4 {[%clk 0:02:14.2]}
8... Nc6 {[%clk 0:02:52.8]} 9. cxd5 {[%clk 0:02:09.5]} 9... Nb4 {[%clk
0:02:52.9]} 10. Qe2 {[%clk 0:02:02.2]} 10... Nxd5 {[%clk 0:02:52.3]} 11. Nc3
{[%clk 0:02:01.9]} 11... cxd4 {[%clk 0:02:51.2]} 12. Nxd5 {[%clk 0:02:00.2]}
12... Qxd5 {[%clk 0:02:51.3]} 13. Rd1 {[%clk 0:01:58.8]} 13... Bc5 {[%clk
0:02:44.9]} 14. Be3 {[%clk 0:01:58]} 14... Ne7 {[%clk 0:02:44.3]} 15. Bxd4
{[%clk 0:01:47.2]} 15... O-O {[%clk 0:02:35.4]} 16. Bc3 {[%clk 0:01:45.1]} 16...
Qc6 {[%clk 0:02:35.3]} 17. Ng5 {[%clk 0:01:44.4]} 17... Nf5 {[%clk 0:02:25.8]}
18. Ne4 {[%clk 0:01:37.4]} 18... Rfd8 {[%clk 0:02:22.5]} 19. Nxc5 {[%clk
0:01:19.3]} 19... Qxc5 {[%clk 0:02:22.3]} 20. Qe4 {[%clk 0:01:10]} 20... Qb5
{[%clk 0:02:14.5]} 21. g3 {[%clk 0:00:46.9]} 21... h6 {[%clk 0:02:14.5]} 22. Kg2
{[%clk 0:00:46.2]} 22... Rac8 {[%clk 0:02:14.4]} 23. h4 {[%clk 0:00:43.8]} 23...
Ne7 {[%clk 0:01:57.7]} 24. a4 {[%clk 0:00:37.3]} 24... Qb3 {[%clk 0:01:53.2]}
25. Rxd8+ {[%clk 0:00:36.1]} 25... Rxd8 {[%clk 0:01:53.1]} 26. Ra3 {[%clk
0:00:35.9]} 26... Qd5 {[%clk 0:01:45.2]} 27. Qxd5 {[%clk 0:00:34.1]} 27... Nxd5
{[%clk 0:01:45.3]} 28. Rb3 {[%clk 0:00:33.1]} 28... Rd7 {[%clk 0:01:44.3]} 29.
Bd4 {[%clk 0:00:32.8]} 29... h5 {[%clk 0:01:44.5]} 30. Bc5 {[%clk 0:00:32.6]}
30... Kh7 {[%clk 0:01:42.9]} 31. Kf3 {[%clk 0:00:30.9]} 31... Kg6 {[%clk
0:01:41.2]} 32. Bd6 {[%clk 0:00:28.8]} 32... Kf5 {[%clk 0:01:40.3]} 33. a5
{[%clk 0:00:27.7]} 33... f6 {[%clk 0:01:39.3]} 34. exf6 {[%clk 0:00:26.3]} 34...
Rxd6 {[%clk 0:01:34.2]} 35. fxg7 {[%clk 0:00:26.3]} 35... Nf6 {[%clk 0:01:32.8]}
36. Rxb7 {[%clk 0:00:26.7]} 36... Kg6 {[%clk 0:01:33.2]} 37. Rb6 {[%clk
0:00:25.3]} 37... Rd2 {[%clk 0:01:27.9]} 38. Rxe6 {[%clk 0:00:23]} 38... Kxg7
{[%clk 0:01:28]} 39. Rxa6 {[%clk 0:00:22.6]} 39... Rxb2 {[%clk 0:01:28.6]} 40.
Rb6 {[%clk 0:00:21.6]} 40... Ra2 {[%clk 0:01:28.5]} 41. a6 {[%clk 0:00:21.6]}
41... Kf7 {[%clk 0:01:27.9]} 42. Rb7+ {[%clk 0:00:18.9]} 42... Kg6 {[%clk
0:01:27.9]} 43. a7 {[%clk 0:00:18.8]} 43... Ng4 {[%clk 0:01:27.4]} 44. Ke4
{[%clk 0:00:18]} 44... Nxf2+ {[%clk 0:01:24.9]} 45. Kd5 {[%clk 0:00:17.8]} 45...
Kf5 {[%clk 0:01:07.7]} 46. Rf7+ {[%clk 0:00:16.5]} 46... Kg4 {[%clk 0:01:08]}
47. Rxf2 {[%clk 0:00:16.1]} 47... Rxa7 {[%clk 0:01:08.6]} 48. Rg2 {[%clk
0:00:16.1]} 48... Re7 {[%clk 0:01:05.8]} 49. Kd4 {[%clk 0:00:15.3]} 49... Kf3
{[%clk 0:01:06.2]} 50. Rg1 {[%clk 0:00:13.9]} 50... Kf2 {[%clk 0:01:06]} 51. Rc1
{[%clk 0:00:12.2]} 51... Kxg3 {[%clk 0:01:06.4]} 52. Rh1 {[%clk 0:00:12.2]}
52... Kg2 {[%clk 0:00:46.2]} 53. Rc1 {[%clk 0:00:09.9]} 53... Kh3 {[%clk
0:00:46.2]} 54. Rh1+ {[%clk 0:00:08.3]} 54... Kg3 {[%clk 0:00:46.2]} 55. Kd3
{[%clk 0:00:07]} 55... Ra7 {[%clk 0:00:41]} 56. Ke3 {[%clk 0:00:06.1]} 56...
Ra3+ {[%clk 0:00:39]} 57. Ke2 {[%clk 0:00:06]} 57... Ra4 {[%clk 0:00:36.3]} 58.
Ke3 {[%clk 0:00:05.4]} 58... Kg2 {[%clk 0:00:36.2]} 59. Rc1 {[%clk 0:00:04.7]}
59... Rxh4 {[%clk 0:00:36.7]} 60. Rc5 {[%clk 0:00:04.1]} 60... Rh3+ {[%clk
0:00:18.4]} 61. Ke2 {[%clk 0:00:04.2]} 61... h4 {[%clk 0:00:17.1]} 62. Rh5
{[%clk 0:00:04.3]} 62... Rh2 {[%clk 0:00:11.4]} 63. Rg5+ {[%clk 0:00:03.3]}
63... Kh3+ {[%clk 0:00:10.1]} 64. Kf1 {[%clk 0:00:03.2]} 64... Ra2 {[%clk
0:00:10.1]} 65. Rg8 {[%clk 0:00:03]} 65... Kh2 {[%clk 0:00:10.3]} 66. Rg7 {[%clk
0:00:03.3]} 66... h3 {[%clk 0:00:10.8]} 67. Rg8 {[%clk 0:00:03.4]} 67... Ra1+
{[%clk 0:00:11]} 68. Kf2 {[%clk 0:00:02.9]} 68... Ra7 {[%clk 0:00:11.9]} 69. Rf8
{[%clk 0:00:01]} 69... Ra2+ {[%clk 0:00:11.4]} 0-1